[Event "European Amateur-ch U2000 2019"]
[Site "Rhodes"]
[Date "2019.04.07"]
[Round "2.1"]
[White "Bozinovic, Boban"]
[Black "Kostov, Deyan Samuil"]
[Result "0-1"]
[ECO "B89"]
[WhiteElo "1950"]
[BlackElo "1830"]
[Annotator "NA"]
[PlyCount "60"]
[EventDate "2019.04.06"]
[EventType "swiss"]
[EventCountry "GRE"]
[SourceTitle "playchess.com"]
[Source "ChessBase"]
[SourceQuality "1"]
[TimeControl "40/5400+30:1800+30"]

1. e4 {[%emt 0:00:00]} c5 {[%emt 0:00:00]} 2. Nf3 {[%emt 0:00:00]} d6 {[%emt 0:00:00]} 3. d4 {[%emt 0:00:26]} Nf6 {[%emt 0:00:36]} 4. Nc3 {[%emt 0:00:06]} cxd4 {[%emt 0:00:11]} 5. Nxd4 {[%emt 0:00:27]} Nc6 {[%emt 0:00:24]} 6. Bc4 {[%emt 0:00:12]} e6 {[%emt 0:00:24]} 7. Be3 {[%emt 0:00:53]} Be7 {[%emt 0:00:44]} 8. Qe2 {[%emt 0:00:46]} a6 {[%emt 0:01:53]} 9. O-O-O {[%emt 0:01:24]} Qa5 {[%emt 0:03:16]} 10. Bb3 {[%emt 0:04:56]} Bd7 {[%emt 0:07:37]} 11. f3 {[%emt 0:08:19]} b5 {[%emt 0:06:27]} 12. Nxc6 {[%emt 0:08:55]} Bxc6 {[%emt 0:00:10]} 13. Rhe1 {[%emt 0:04:47]} O-O {[%emt 0:15:23]} 14. Qf2 {[%emt 0:11:13]} Rab8 {[%emt 0:04:03]} 15. Kb1 {[%emt 0:05:23]} b4 {[%emt 0:15:19]} 16. Ne2 {[%emt 0:01:19]} d5 {[%emt 0:02:39]} 17. Nd4 {[%emt 0:03:31]} Ba8 {[%emt 0:02:41]} 18. e5 {[%emt 0:01:34]} Nd7 {[%emt 0:01:14]} 19. g4 {[%emt 0:18:12]} Nc5 {[%emt 0:04:12]} 20. h4 {[%emt 0:01:22]} Qc7 {[%emt 0:00:40]} 21. Qd2 {[%emt 0:11:42]} a5 {[%emt 0:02:18]} 22. c3 {[%emt 0:00:19]} a4 {[%emt 0:01:42]} 23. cxb4 {[%emt 0:02:08]} Nxb3 {[%emt 0:00:06]} 24. axb3 {[%emt 0:06:45]} Bxb4 {[%emt 0:00:08]} 25. Qh2 {[%emt 0:01:13]} Bxe1 {[%emt 0:00:18]} 26. Rxe1 {[%emt 0:00:28]} axb3 {[%emt 0:00:14]} 27. Bd2 {[%emt 0:02:07]} Qa7 {[%emt 0:00:14]} 28. Bc3 {[%emt 0:00:08]} Rfc8 {[%emt 0:00:31]} 29. Ne2 {[%emt 0:03:23]} Qa2+ {[%emt 0:00:04]} 30. Kc1 {[%emt 0:00:06]} d4 {[%emt 0:00:12]} 0-1

[Event "European Amateur-ch U2000 2019"]
[Site "Rhodes"]
[Date "2019.04.07"]
[Round "2.3"]
[White "Krzysztynska, Anna"]
[Black "Frontzos, Ioannis"]
[Result "1/2-1/2"]
[ECO "C92"]
[WhiteElo "1844"]
[BlackElo "1504"]
[Annotator "NA"]
[PlyCount "101"]
[EventDate "2019.04.06"]
[EventType "swiss"]
[EventCountry "GRE"]
[SourceTitle "playchess.com"]
[Source "ChessBase"]
[SourceQuality "1"]
[TimeControl "40/5400+30:1800+30"]

1. e4 {[%emt 0:00:00]} e5 {[%emt 0:00:00]} 2. Nf3 {[%emt 0:00:00]} Nc6 {[%emt 0:00:00]} 3. Bb5 {[%emt 0:00:00]} a6 {[%emt 0:00:06]} 4. Ba4 {[%emt 0:00:00]} Nf6 {[%emt 0:00:19]} 5. O-O {[%emt 0:00:21]} Be7 {[%emt 0:00:55]} 6. Re1 {[%emt 0:00:40]} b5 {[%emt 0:00:23]} 7. Bb3 {[%emt 0:00:06]} d6 {[%emt 0:01:01]} 8. c3 {[%emt 0:01:36]} O-O {[%emt 0:00:18]} 9. d3 {[%emt 0:00:34]} Bb7 {[%emt 0:05:40]} 10. Nbd2 {[%emt 0:01:52]} Na5 {[%emt 0:06:36]} 11. Bc2 {[%emt 0:00:11]} c5 {[%emt 0:01:39]} 12. Nf1 {[%emt 0:02:05]} Re8 {[%emt 0:02:37]} 13. Ng3 {[%emt 0:01:20]} g6 {[%emt 0:06:32]} 14. h3 {[%emt 0:05:24]} Bf8 {[%emt 0:01:33]} 15. Be3 {[%emt 0:01:48]} Nc6 {[%emt 0:09:43]} 16. Qd2 {[%emt 0:01:28]} Bg7 {[%emt 0:01:50]} 17. Bb3 {[%emt 0:06:22]} Na5 {[%emt 0:03:49]} 18. Bc2 {[%emt 0:00:30]} Nc6 {[%emt 0:00:33]} 19. Bh6 {[%emt 0:06:51]} Qe7 {[%emt 0:07:42]} 20. Bxg7 {[%emt 0:05:08]} Kxg7 {[%emt 0:00:16]} 21. Qg5 {[%emt 0:00:47]} Kh8 {[%emt 0:07:45]} 22. a3 {[%emt 0:12:13]} Nd7 {[%emt 0:04:55]} 23. Qh6 {[%emt 0:01:13]} Qf8 {[%emt 0:05:08]} 24. Qh4 {[%emt 0:02:11]} f6 {[%emt 0:05:12]} 25. Nd2 {[%emt 0:11:57]} Qe7 {[%emt 0:06:28]} 26. Bb3 {[%emt 0:01:11]} Nb6 {[%emt 0:02:43]} 27. Ba2 {[%emt 0:03:17]} Bc8 {[%emt 0:03:32]} 28. Bd5 {[%emt 0:03:22]} Bd7 {[%emt 0:06:48]} 29. Rac1 {[%emt 0:06:04]} Rac8 {[%emt 0:00:52]} 30. Nf3 {[%emt 0:03:00]} Be6 {[%emt 0:03:51]} 31. c4 {[%emt 0:01:28]} bxc4 {[%emt 0:02:27]} 32. dxc4 {[%emt 0:00:12]} Bxd5 {[%emt 0:01:24]} 33. exd5 {[%emt 0:01:23]} Nd4 {[%emt 0:00:42]} 34. Nxd4 {[%emt 0:00:51]} cxd4 {[%emt 0:00:12]} 35. b3 {[%emt 0:00:49]} f5 {[%emt 0:00:58]} 36. Qh6 {[%emt 0:01:24]} Qg7 {[%emt 0:01:30]} 37. Qd2 {[%emt 0:05:15]} e4 {[%emt 0:00:54]} 38. Rcd1 {[%emt 0:03:25]} d3 {[%emt 0:00:20]} 39. f3 {[%emt 0:01:28]} Qd4+ {[%emt 0:00:52]} 40. Qe3 {[%emt 0:00:00]} Qxe3+ {[%emt 0:00:00]} 41. Rxe3 {[%emt 0:01:23]} f4 {[%emt 0:02:36]} 42. Rxe4 {[%emt 0:00:39]} fxg3 {[%emt 0:00:21]} 43. Rxd3 {[%emt 0:00:40]} Rxe4 {[%emt 0:01:11]} 44. fxe4 {[%emt 0:00:04]} Re8 {[%emt 0:06:50]} 45. Re3 {[%emt 0:01:19]} Nd7 {[%emt 0:05:10]} 46. b4 {[%emt 0:07:20]} Nb6 {[%emt 0:04:47]} 47. c5 {[%emt 0:08:46]} Nxd5 {[%emt 0:07:20]} 48. Rxg3 {[%emt 0:00:38]} Rxe4 {[%emt 0:00:50]} 49. Rd3 {[%emt 0:01:17]} dxc5 {[%emt 0:02:31]} 50. Rxd5 {[%emt 0:03:16]} cxb4 {[%emt 0:00:08]} 51. axb4 {[%emt 0:01:01]} 1/2-1/2

[Event "European Amateur-ch U2000 2019"]
[Site "Rhodes"]
[Date "2019.04.07"]
[Round "2.5"]
[White "Boesch, Heinz"]
[Black "Mohnblatt, Nicolas"]
[Result "1-0"]
[ECO "C00"]
[WhiteElo "1929"]
[BlackElo "1685"]
[Annotator "NA"]
[PlyCount "71"]
[EventDate "2019.04.06"]
[EventType "swiss"]
[EventCountry "GRE"]
[SourceTitle "playchess.com"]
[Source "ChessBase"]
[SourceQuality "1"]
[TimeControl "40/5400+30:1800+30"]

1. e4 {[%emt 0:00:00]} c5 {[%emt 0:00:00]} 2. Nf3 {[%emt 0:00:00]} Nc6 {[%emt 0:00:00]} 3. d3 {[%emt 0:00:01]} e6 {[%emt 0:01:07]} 4. g3 {[%emt 0:00:46]} d5 {[%emt 0:00:40]} 5. Nbd2 {[%emt 0:00:06]} Nf6 {[%emt 0:01:46]} 6. Bg2 {[%emt 0:00:12]} Be7 {[%emt 0:04:51]} 7. O-O {[%emt 0:00:08]} O-O {[%emt 0:00:12]} 8. Re1 {[%emt 0:00:36]} dxe4 {[%emt 0:01:48]} 9. dxe4 {[%emt 0:00:44]} e5 {[%emt 0:00:36]} 10. c3 {[%emt 0:00:46]} Be6 {[%emt 0:02:48]} 11. h3 {[%emt 0:05:08]} h6 {[%emt 0:02:29]} 12. Qe2 {[%emt 0:03:34]} Rb8 {[%emt 0:04:07]} 13. Nc4 {[%emt 0:09:36]} Bxc4 {[%emt 0:13:11]} 14. Qxc4 {[%emt 0:00:16]} b5 {[%emt 0:00:04]} 15. Qe2 {[%emt 0:00:21]} b4 {[%emt 0:12:12]} 16. Nh4 {[%emt 0:02:03]} Nh7 {[%emt 0:09:43]} 17. Nf5 {[%emt 0:01:30]} Bf6 {[%emt 0:01:39]} 18. Be3 {[%emt 0:06:53]} Qa5 {[%emt 0:04:46]} 19. Bf1 {[%emt 0:09:15]} Ne7 {[%emt 0:07:33]} 20. Nd6 {[%emt 0:09:20]} Rbd8 {[%emt 0:04:44]} 21. Nb7 {[%emt 0:01:04]} Qc7 {[%emt 0:00:12]} 22. Nxd8 {[%emt 0:00:10]} Rxd8 {[%emt 0:00:12]} 23. Red1 {[%emt 0:00:36]} Rc8 {[%emt 0:00:40]} 24. cxb4 {[%emt 0:00:14]} cxb4 {[%emt 0:01:50]} 25. Rac1 {[%emt 0:01:13]} Qb7 {[%emt 0:02:10]} 26. Rxc8+ {[%emt 0:03:17]} Nxc8 {[%emt 0:00:23]} 27. Qa6 {[%emt 0:00:51]} Qxa6 {[%emt 0:03:48]} 28. Bxa6 {[%emt 0:00:07]} Ne7 {[%emt 0:00:11]} 29. Bxa7 {[%emt 0:01:35]} Ng5 {[%emt 0:00:28]} 30. Bc5 {[%emt 0:01:29]} Nc6 {[%emt 0:01:54]} 31. Bb7 {[%emt 0:16:09]} Nxe4 {[%emt 0:02:19]} 32. Bxc6 {[%emt 0:03:47]} Nxc5 {[%emt 0:00:07]} 33. Rd5 {[%emt 0:01:54]} Ne6 {[%emt 0:01:32]} 34. a4 {[%emt 0:02:37]} e4 {[%emt 0:03:23]} 35. Rb5 {[%emt 0:00:40]} Nd4 {[%emt 0:01:34]} 36. Rb8+ {[%emt 0:00:21]} 1-0

[Event "European Amateur-ch U2000 2019"]
[Site "Rhodes"]
[Date "2019.04.07"]
[Round "2.6"]
[White "Petukhov, Igor"]
[Black "Jamba, Alexandru"]
[Result "0-1"]
[ECO "B51"]
[WhiteElo "1819"]
[BlackElo "1852"]
[Annotator "NA"]
[PlyCount "134"]
[EventDate "2019.04.06"]
[EventType "swiss"]
[EventCountry "GRE"]
[SourceTitle "playchess.com"]
[Source "ChessBase"]
[SourceQuality "1"]
[TimeControl "40/5400+30:1800+30"]

1. e4 {[%emt 0:00:00]} c5 {[%emt 0:00:00]} 2. Nf3 {[%emt 0:00:00]} Nc6 {[%emt 0:00:11]} 3. Bb5 {[%emt 0:00:07]} d6 {[%emt 0:00:20]} 4. O-O {[%emt 0:02:17]} e6 {[%emt 0:02:04]} 5. Re1 {[%emt 0:05:55]} Nge7 {[%emt 0:01:12]} 6. c3 {[%emt 0:01:07]} Bd7 {[%emt 0:00:31]} 7. d4 {[%emt 0:01:11]} cxd4 {[%emt 0:00:20]} 8. cxd4 {[%emt 0:00:11]} a6 {[%emt 0:01:53]} 9. Bf1 {[%emt 0:03:50]} d5 {[%emt 0:04:13]} 10. Nc3 {[%emt 0:02:04]} dxe4 {[%emt 0:06:20]} 11. Nxe4 {[%emt 0:02:09]} Nd5 {[%emt 0:04:24]} 12. Bg5 {[%emt 0:04:23]} f6 {[%emt 0:02:41]} 13. Bh4 {[%emt 0:02:48]} Be7 {[%emt 0:00:36]} 14. Nc5 {[%emt 0:02:21]} Bxc5 {[%emt 0:07:30]} 15. dxc5 {[%emt 0:00:18]} O-O {[%emt 0:01:39]} 16. Bc4 {[%emt 0:05:08]} Nce7 {[%emt 0:00:46]} 17. Bg3 {[%emt 0:04:48]} Kh8 {[%emt 0:33:22]} 18. Bd6 {[%emt 0:01:21]} Re8 {[%emt 0:01:28]} 19. Bxe7 {[%emt 0:09:17]} Rxe7 {[%emt 0:05:26]} 20. Bxd5 {[%emt 0:00:42]} exd5 {[%emt 0:00:02]} 21. Qxd5 {[%emt 0:01:13]} Rxe1+ {[%emt 0:00:34]} 22. Rxe1 {[%emt 0:01:45]} Bc6 {[%emt 0:00:10]} 23. Qb3 {[%emt 0:06:05]} Qa5 {[%emt 0:02:05]} 24. Rc1 {[%emt 0:03:22]} Rd8 {[%emt 0:01:10]} 25. Qb6 {[%emt 0:01:49]} Qxb6 {[%emt 0:00:41]} 26. cxb6 {[%emt 0:00:02]} Kg8 {[%emt 0:02:48]} 27. Kf1 {[%emt 0:00:26]} Bb5+ {[%emt 0:05:56]} 28. Ke1 {[%emt 0:00:48]} Bc6 {[%emt 0:01:50]} 29. Ke2 {[%emt 0:02:55]} Kf7 {[%emt 0:02:06]} 30. Ke3 {[%emt 0:01:22]} Rd5 {[%emt 0:03:56]} 31. a4 {[%emt 0:05:26]} Bxa4 {[%emt 0:02:27]} 32. Rc7+ {[%emt 0:00:32]} Rd7 {[%emt 0:00:19]} 33. Rxd7+ {[%emt 0:08:01]} Bxd7 {[%emt 0:00:05]} 34. Kd4 {[%emt 0:00:13]} Bc6 {[%emt 0:00:35]} 35. Kc5 {[%emt 0:00:16]} Bxf3 {[%emt 0:01:43]} 36. gxf3 {[%emt 0:00:11]} Ke6 {[%emt 0:00:04]} 37. f4 {[%emt 0:00:33]} g5 {[%emt 0:01:47]} 38. f5+ {[%emt 0:05:22]} Ke5 {[%emt 0:00:27]} 39. f3 {[%emt 0:00:57]} h6 {[%emt 0:01:54]} 40. b3 {[%emt 0:00:00]} h5 {[%emt 0:00:00]} 41. h3 {[%emt 0:04:09]} h4 {[%emt 0:00:36]} 42. b4 {[%emt 0:00:22]} Kf4 {[%emt 0:00:14]} 43. Kd6 {[%emt 0:00:56]} Kxf3 {[%emt 0:00:09]} 44. Kc7 {[%emt 0:03:11]} g4 {[%emt 0:01:08]} 45. hxg4 {[%emt 0:00:06]} h3 {[%emt 0:00:08]} 46. g5 {[%emt 0:00:08]} h2 {[%emt 0:00:17]} 47. gxf6 {[%emt 0:00:10]} h1=Q {[%emt 0:00:07]} 48. Kxb7 {[%emt 0:00:28]} Qh7+ {[%emt 0:05:12]} 49. Kxa6 {[%emt 0:00:07]} Qxf5 {[%emt 0:00:18]} 50. f7 {[%emt 0:02:46]} Qxf7 {[%emt 0:00:51]} 51. b7 {[%emt 0:00:18]} Qe8 {[%emt 0:01:48]} 52. Ka7 {[%emt 0:00:51]} Qa4+ {[%emt 0:00:06]} 53. Kb6 {[%emt 0:04:39]} Qxb4+ {[%emt 0:00:06]} 54. Kc7 {[%emt 0:00:09]} Qc5+ {[%emt 0:00:10]} 55. Kd8 {[%emt 0:01:56]} Qb6+ {[%emt 0:00:06]} 56. Kc8 {[%emt 0:00:12]} Qc6+ {[%emt 0:00:04]} 57. Kb8 {[%emt 0:00:14]} Ke4 {[%emt 0:00:31]} 58. Ka7 {[%emt 0:00:07]} Qc7 {[%emt 0:00:39]} 59. Ka8 {[%emt 0:00:14]} Qa5+ {[%emt 0:00:08]} 60. Kb8 {[%emt 0:00:14]} Kd5 {[%emt 0:00:17]} 61. Kc8 {[%emt 0:00:06]} Qc5+ {[%emt 0:00:14]} 62. Kd8 {[%emt 0:01:37]} Qb6+ {[%emt 0:00:09]} 63. Kc8 {[%emt 0:00:23]} Qc6+ {[%emt 0:01:08]} 64. Kb8 {[%emt 0:00:09]} Kc5 {[%emt 0:00:54]} 65. Ka7 {[%emt 0:00:40]} Qc7 {[%emt 0:00:18]} 66. Ka8 {[%emt 0:01:00]} Qa5+ {[%emt 0:00:06]} 67. Kb8 {[%emt 0:00:07]} Kc6 {[%emt 0:00:09]} 0-1

[Event "European Amateur-ch U2000 2019"]
[Site "Rhodes"]
[Date "2019.04.07"]
[Round "2.7"]
[White "Zielinski, Olgierd"]
[Black "Mihalache, Paul-Stelian"]
[Result "0-1"]
[WhiteElo "1850"]
[BlackElo "1830"]
[Annotator "NA"]
[PlyCount "20"]
[EventDate "2019.04.06"]
[EventType "swiss"]
[EventCountry "GRE"]
[SourceTitle "playchess.com"]
[Source "ChessBase"]
[SourceQuality "1"]
[TimeControl "40/5400+30:1800+30"]

1. e4 {[%emt 0:00:00]} c5 {[%emt 0:00:00]} 2. Nf3 {[%emt 0:00:00]} Nc6 {[%emt 0:00:00]} 3. d4 {[%emt 0:00:09]} cxd4 {[%emt 0:00:07]} 4. Nxd4 {[%emt 0:00:15]} Nf6 {[%emt 0:00:18]} 5. Nc3 {[%emt 0:00:09]} e5 {[%emt 0:00:16]} 6. Ndb5 {[%emt 0:00:16]} d6 {[%emt 0:00:12]} 7. Bg5 {[%emt 0:00:21]} a6 {[%emt 0:00:10]} 8. Bxf6 {[%emt 0:00:10]} gxf6 {[%emt 0:00:28]} 9. Na3 {[%emt 0:00:13]} b5 {[%emt 0:00:53]} 10. Nd5 {[%emt 0:00:18]} f5 {[%emt 0:00:30]} 0-1

[Event "European Amateur-ch U2000 2019"]
[Site "Rhodes"]
[Date "2019.04.07"]
[Round "2.8"]
[White "Zanfir, Iulian"]
[Black "Demirbas, Emre"]
[Result "0-1"]
[ECO "D04"]
[WhiteElo "1699"]
[BlackElo "1960"]
[Annotator "NA"]
[PlyCount "114"]
[EventDate "2019.04.06"]
[EventType "swiss"]
[EventCountry "GRE"]
[SourceTitle "playchess.com"]
[Source "ChessBase"]
[SourceQuality "1"]
[TimeControl "40/5400+30:1800+30"]

1. d4 {[%emt 1:30:30]} d5 {[%emt 1:30:30]} 2. Nf3 {[%emt 0:00:00]} Nf6 {[%emt 0:00:00]} 3. e3 {[%emt 0:00:00]} c5 {[%emt 0:00:00]} 4. c3 {[%emt 0:00:00]} Nc6 {[%emt 0:00:00]} 5. Bd3 {[%emt 0:00:00]} g6 {[%emt 0:00:00]} 6. Nbd2 {[%emt 0:00:00]} Bg7 {[%emt 0:00:00]} 7. O-O {[%emt 0:00:00]} O-O {[%emt 0:00:00]} 8. h3 {[%emt 0:00:00]} Qc7 {[%emt 0:00:00]} 9. dxc5 {[%emt 0:00:00]} Nd7 {[%emt 0:00:00]} 10. Nb3 {[%emt 0:00:00]} Rd8 {[%emt 0:00:00]} 11. Qe2 {[%emt 0:00:00]} Nce5 {[%emt 0:00:00]} 12. Nxe5 {[%emt 0:00:00]} Bxe5 {[%emt 0:00:00]} 13. e4 {[%emt 0:00:00]} dxe4 {[%emt 0:00:00]} 14. Bxe4 {[%emt 0:00:00]} Nxc5 {[%emt 0:00:00]} 15. Nxc5 {[%emt 0:00:00]} Qxc5 {[%emt 0:00:00]} 16. Be3 {[%emt 0:00:00]} Qc7 {[%emt 0:00:00]} 17. Rfd1 {[%emt 0:00:00]} Be6 {[%emt 0:00:00]} 18. a3 {[%emt 0:00:00]} Bb3 $11 {[%emt 0:00:00]} 19. Bc2 {[%emt 0:00:00]} Bd5 {[%emt 0:00:00]} 20. Bd4 {[%emt 0:00:00]} Bh2+ {[%emt 0:00:00]} 21. Kh1 {[%emt 0:12:04]} Bd6 {[%emt 0:00:00]} 22. Be3 {[%emt 0:00:00]} Qc6 {[%emt 0:00:00]} 23. f3 {[%emt 0:00:00]} Bc7 {[%emt 0:00:00]} 24. Bg1 {[%emt 0:00:00]} Rd6 {[%emt 0:00:00]} 25. Bh2 {[%emt 0:00:00]} Re6 {[%emt 0:00:00]} 26. Qf2 {[%emt 0:00:00]} Bb6 {[%emt 0:00:00]} 27. Qh4 {[%emt 0:00:00]} Bxf3 {[%emt 0:00:00]} 28. Rd2 {[%emt 0:00:00]} Bxg2+ {[%emt 0:00:00]} 29. Rxg2 {[%emt 0:00:00]} Re2 {[%emt 0:00:00]} 30. Be4 {[%emt 0:00:00]} Rxe4 {[%emt 0:00:00]} 31. Qg5 {[%emt 0:00:00]} Re2 {[%emt 0:00:00]} 32. Rf1 {[%emt 0:00:00]} Rd8 {[%emt 0:00:00]} 33. Bf4 {[%emt 0:00:00]} Rxb2 {[%emt 0:00:00]} 34. Kh2 {[%emt 0:00:00]} Rxg2+ {[%emt 0:00:00]} 35. Qxg2 {[%emt 0:00:00]} Bc7 {[%emt 0:00:00]} 36. Qxc6 {[%emt 0:00:35]} Bxf4+ {[%emt 0:00:00]} 37. Rxf4 {[%emt 0:00:11]} bxc6 {[%emt 0:00:02]} 38. Rc4 {[%emt 0:00:23]} Rd6 {[%emt 0:00:27]} 39. Ra4 {[%emt 0:00:07]} Rd2+ {[%emt 0:00:01]} 40. Kg1 {[%emt 0:00:00]} Rd3 {[%emt 0:00:00]} 41. Rxa7 {[%emt 0:00:35]} Rxc3 {[%emt 0:00:17]} 42. a4 {[%emt 0:00:15]} Rxh3 {[%emt 0:00:08]} 43. Rxe7 {[%emt 0:00:13]} Ra3 {[%emt 0:00:02]} 44. Re4 {[%emt 0:00:25]} Ra2 {[%emt 0:00:11]} 45. Kf1 {[%emt 0:00:26]} h5 {[%emt 0:00:07]} 46. Ke1 {[%emt 0:00:05]} Kg7 {[%emt 0:00:11]} 47. Kd1 {[%emt 0:00:17]} g5 {[%emt 0:00:03]} 48. Kc1 {[%emt 0:00:05]} h4 {[%emt 0:00:05]} 49. Kb1 {[%emt 0:00:03]} Rd2 {[%emt 0:00:28]} 50. a5 {[%emt 0:01:12]} h3 {[%emt 0:00:16]} 51. a6 {[%emt 0:00:14]} h2 {[%emt 0:00:10]} 52. Re1 {[%emt 0:00:25]} Rg2 {[%emt 0:01:08]} 53. Rh1 {[%emt 0:01:36]} Rg1+ {[%emt 0:00:11]} 54. Kb2 {[%emt 0:00:15]} Rxh1 {[%emt 0:00:06]} 55. a7 {[%emt 0:00:04]} Ra1 {[%emt 0:00:04]} 56. Kxa1 {[%emt 0:00:25]} h1=Q+ {[%emt 0:00:01]} 57. Kb2 {[%emt 0:00:12]} c5 {[%emt 0:00:08]} 0-1

[Event "European Amateur-ch U2000 2019"]
[Site "Rhodes"]
[Date "2019.04.07"]
[Round "2.9"]
[White "Zakharov, Denis"]
[Black "Nagy, Laszlo Bence"]
[Result "1-0"]
[ECO "A08"]
[WhiteElo "1889"]
[BlackElo "1978"]
[Annotator "NA"]
[PlyCount "75"]
[EventDate "2019.04.06"]
[EventType "swiss"]
[EventCountry "GRE"]
[SourceTitle "playchess.com"]
[Source "ChessBase"]
[SourceQuality "1"]
[TimeControl "40/5400+30:1800+30"]

1. Nf3 {[%emt 0:00:00]} c5 {[%emt 0:00:00]} 2. g3 {[%emt 0:01:48]} d5 {[%emt 0:00:22]} 3. d3 {[%emt 0:00:12]} Nf6 {[%emt 0:00:18]} 4. Bg2 {[%emt 0:00:07]} Nc6 {[%emt 0:00:43]} 5. Nbd2 {[%emt 0:01:14]} e5 {[%emt 0:05:56]} 6. e4 {[%emt 0:00:50]} dxe4 {[%emt 0:05:37]} 7. dxe4 {[%emt 0:00:15]} Be7 {[%emt 0:01:58]} 8. O-O {[%emt 0:00:14]} O-O {[%emt 0:00:45]} 9. c3 {[%emt 0:00:38]} b5 {[%emt 0:03:53]} 10. Qc2 {[%emt 0:00:42]} Qc7 {[%emt 0:04:38]} 11. Rd1 {[%emt 0:03:22]} Rd8 {[%emt 0:01:20]} 12. b3 {[%emt 0:03:57]} Bg4 {[%emt 0:08:16]} 13. Bb2 {[%emt 0:01:19]} a5 {[%emt 0:05:18]} 14. Nf1 {[%emt 0:00:57]} Rxd1 {[%emt 0:01:56]} 15. Rxd1 {[%emt 0:00:03]} a4 {[%emt 0:11:27]} 16. Ne3 $11 {[%emt 0:01:44]} axb3 {[%emt 0:06:20]} 17. axb3 {[%emt 0:00:18]} Ra2 {[%emt 0:01:13]} 18. Nxg4 {[%emt 0:02:57]} Nxg4 {[%emt 0:00:08]} 19. Qb1 {[%emt 0:01:40]} Qa7 {[%emt 0:02:00]} 20. h3 {[%emt 0:00:28]} Nf6 {[%emt 0:01:10]} 21. Nd2 {[%emt 0:04:33]} h5 {[%emt 0:05:31]} 22. Bf1 {[%emt 0:01:21]} b4 {[%emt 0:14:55]} 23. Nc4 {[%emt 0:06:56]} bxc3 {[%emt 0:02:07]} 24. Bxc3 {[%emt 0:00:24]} Nd4 {[%emt 0:03:11]} 25. Nxe5 {[%emt 0:01:03]} Bd6 {[%emt 0:01:31]} 26. Bxd4 {[%emt 0:02:42]} cxd4 {[%emt 0:00:09]} 27. Nc6 {[%emt 0:00:08]} Qa8 {[%emt 0:02:53]} 28. e5 {[%emt 0:00:17]} Bc5 {[%emt 0:03:45]} 29. Bg2 {[%emt 0:04:05]} Qa3 {[%emt 0:01:45]} 30. exf6 {[%emt 0:01:01]} d3 {[%emt 0:00:15]} 31. Ne7+ {[%emt 0:01:48]} Kf8 {[%emt 0:01:50]} 32. fxg7+ {[%emt 0:00:23]} Kxg7 {[%emt 0:00:03]} 33. Nf5+ {[%emt 0:02:05]} Kg8 {[%emt 0:00:11]} 34. Qxd3 {[%emt 0:00:22]} Rxf2 {[%emt 0:02:19]} 35. Kh1 {[%emt 0:00:34]} Qb2 {[%emt 0:00:29]} 36. Qe4 {[%emt 0:00:55]} Qxb3 {[%emt 0:00:42]} 37. Rd8+ {[%emt 0:03:26]} Bf8 {[%emt 0:00:02]} 38. Rxf8+ {[%emt 0:00:16]} 1-0

[Event "European Amateur-ch U2000 2019"]
[Site "Rhodes"]
[Date "2019.04.07"]
[Round "2.10"]
[White "Flis, Pawel"]
[Black "Minko, Olga"]
[Result "1-0"]
[ECO "B23"]
[WhiteElo "1903"]
[BlackElo "1833"]
[Annotator "NA"]
[PlyCount "95"]
[EventDate "2019.04.06"]
[EventType "swiss"]
[EventCountry "GRE"]
[SourceTitle "playchess.com"]
[Source "ChessBase"]
[SourceQuality "1"]
[TimeControl "40/5400+30:1800+30"]

1. e4 {[%emt 0:00:00]} c5 {[%emt 0:00:00]} 2. Nc3 {[%emt 0:00:00]} Nc6 {[%emt 0:00:06]} 3. Bb5 {[%emt 0:00:00]} Nd4 {[%emt 0:01:45]} 4. Bc4 {[%emt 0:00:07]} g6 {[%emt 0:05:28]} 5. Nf3 {[%emt 0:00:52]} Bg7 {[%emt 0:04:38]} 6. Nxd4 {[%emt 0:00:22]} cxd4 {[%emt 0:01:35]} 7. Qf3 {[%emt 0:00:22]} Nh6 {[%emt 0:01:20]} 8. d3 {[%emt 0:07:33]} O-O {[%emt 0:04:08]} 9. Ne2 {[%emt 0:06:20]} Ng4 {[%emt 0:03:33]} 10. Bb3 {[%emt 0:03:13]} Ne5 {[%emt 0:08:45]} 11. Qg3 {[%emt 0:01:59]} Nc6 {[%emt 0:09:49]} 12. h4 {[%emt 0:04:54]} h5 {[%emt 0:07:28]} 13. Qxg6 {[%emt 0:04:38]} e6 {[%emt 0:03:12]} 14. Qxh5 {[%emt 0:03:04]} Qa5+ {[%emt 0:00:30]} 15. Qxa5 {[%emt 0:00:30]} Nxa5 {[%emt 0:00:09]} 16. Bd2 {[%emt 0:06:32]} Nxb3 {[%emt 0:05:34]} 17. axb3 {[%emt 0:01:46]} b6 {[%emt 0:01:49]} 18. Bb4 {[%emt 0:03:43]} Re8 {[%emt 0:01:45]} 19. Bd6 {[%emt 0:00:11]} Bb7 {[%emt 0:00:57]} 20. c4 {[%emt 0:05:28]} e5 {[%emt 0:04:37]} 21. Ng3 {[%emt 0:01:31]} Kh7 {[%emt 0:06:51]} 22. Nf5 {[%emt 0:01:24]} Re6 {[%emt 0:02:14]} 23. Rh3 {[%emt 0:03:26]} a6 {[%emt 0:03:45]} 24. Bb4 {[%emt 0:03:08]} Bf8 {[%emt 0:01:28]} 25. Bd2 {[%emt 0:00:39]} d6 {[%emt 0:02:24]} 26. Rf3 {[%emt 0:02:43]} f6 {[%emt 0:03:48]} 27. Ke2 {[%emt 0:06:14]} Rd8 {[%emt 0:02:33]} 28. Rh1 {[%emt 0:00:22]} Ree8 {[%emt 0:02:38]} 29. Rhh3 {[%emt 0:05:53]} Bc8 {[%emt 0:00:24]} 30. Rhg3 {[%emt 0:00:14]} Rd7 {[%emt 0:01:26]} 31. h5 {[%emt 0:00:44]} Rf7 {[%emt 0:01:10]} 32. Rg6 {[%emt 0:02:18]} Bxf5 {[%emt 0:01:12]} 33. Rxf5 {[%emt 0:00:55]} Bg7 {[%emt 0:00:37]} 34. Rg3 {[%emt 0:07:25]} a5 {[%emt 0:01:11]} 35. Rgf3 {[%emt 0:00:28]} Ra7 {[%emt 0:01:49]} 36. g4 {[%emt 0:01:09]} Ree7 {[%emt 0:00:34]} 37. g5 {[%emt 0:01:12]} fxg5 {[%emt 0:00:36]} 38. Bxg5 {[%emt 0:00:00]} Red7 {[%emt 0:00:41]} 39. h6 {[%emt 0:03:38]} Bh8 {[%emt 0:00:23]} 40. Rf8 {[%emt 0:00:00]} Rab7 {[%emt 0:00:00]} 41. Bc1 {[%emt 0:02:44]} Re7 {[%emt 0:05:13]} 42. Rd8 {[%emt 0:00:50]} Red7 {[%emt 0:00:58]} 43. Rff8 {[%emt 0:01:29]} Rxd8 {[%emt 0:00:22]} 44. Rxd8 {[%emt 0:00:07]} Bf6 {[%emt 0:00:48]} 45. Rxd6 {[%emt 0:00:25]} Bh8 {[%emt 0:00:43]} 46. Bg5 {[%emt 0:03:10]} b5 {[%emt 0:01:14]} 47. c5 {[%emt 0:00:12]} Rc7 {[%emt 0:00:15]} 48. c6 {[%emt 0:00:11]} 1-0